fUSD/lending_fUSD_20240501
["ID","MTS","AMOUNT","RATE_DAILY","PERIOD"]
[325152022,1714541453387,-500.0,0.00011232,2]
[325152023,1714541453397,-3511.77676824,0.00011355,2]
[325152024,1714541453408,-1476.6526,0.000114,2]
[325152025,1714541453418,-177.20607835,0.00011406,2]
[325152026,1714541453429,-1000.0,0.00011406,2]
[325152027,1714541453439,-1569.0813229,0.00011468,2]
[325152028,1714541453449,-1476.6526,0.0001147,2]
[325152029,1714541453459,-1002.37,0.000115,2]
[325152030,1714541453469,-4415.16760854,0.00011505,2]
[325152031,1714541453478,-500.0,0.00011505,2]
[325152032,1714541453488,-319.92954953,0.00011505,2]
[325152033,1714541453498,-500.0,0.00011505,2]
[325152034,1714541453507,-500.0,0.00011505,2]
[325152035,1714541453517,-759.83,0.00011505,2]
[325152036,1714541453526,-1851.5,0.00011505,2]
[325152037,1714541453536,-12393.71,0.00011505,2]
[325152038,1714541453546,-500.0,0.00011505,2]
[325152039,1714541453555,-801.66,0.00011505,2]
[325152040,1714541453565,-7830.07,0.00011505,2]
[325152041,1714541453575,-529.94,0.00011505,2]
[325152042,1714541453584,-500.0,0.00011505,2]
[325152043,1714541453593,-1352.38,0.00011505,2]
[325152044,1714541453603,-500.0,0.00011505,2]
[325152045,1714541453613,-383.68,0.00011506,2]
[325152046,1714541453623,-511.06844343,0.00011506,2]
[325152047,1714541453632,-626.95296142,0.00011506,2]
[325152048,1714541453641,-513.18248663,0.00011506,2]
[325152049,1714541453651,-500.0,0.00011506,2]
[325152050,1714541453660,-515.86117058,0.00011506,2]
[325152051,1714541453670,-500.0,0.00011506,2]
[325152052,1714541453680,-503.23752911,0.00011506,2]
[325152053,1714541453689,-500.0,0.00011506,2]
[325152054,1714541453698,-500.0,0.00011506,2]
[325152055,1714541453708,-500.0,0.00011506,2]
[325152056,1714541453717,-500.0,0.00011506,2]
[325152057,1714541453727,-516.22083674,0.00011506,2]
[325152058,1714541453736,-500.0,0.00011506,2]
[325152059,1714541453746,-500.0,0.00011506,2]
[325152060,1714541453755,-500.0,0.00011506,2]
[325152061,1714541453764,-583.3,0.00011506,2]
[325152062,1714541453774,-323.25990477,0.00011506,2]
[325152063,1714541453784,-208.71244287,0.00011506,2]
[325152064,1714541453793,-605.09358796,0.00011506,2]
[325152065,1714541453803,-500.0,0.00011506,2]
[325152066,1714541453812,-569.99461467,0.00011506,2]
[325152067,1714541453821,-500.0,0.00011506,2]
[325152068,1714541453831,-500.0,0.00011506,2]
[325152069,1714541453840,-500.0,0.00011506,2]
[325152070,1714541453850,-500.0,0.00011506,2]
[325152071,1714541453861,-500.0,0.00011506,2]
[325152072,1714541453870,-500.0,0.00011506,2]
[325152073,1714541453880,-629.96582023,0.00011506,2]
[325152074,1714541453889,-500.0,0.00011506,2]
[325152075,1714541453898,-500.0,0.00011506,2]
[325152076,1714541453909,-500.0,0.00011506,2]
[325152077,1714541453918,-621.19880764,0.00011506,2]
[325152078,1714541453927,-500.0,0.00011506,2]
[325152079,1714541453938,-500.0,0.00011506,2]
[325152080,1714541453947,-500.0,0.00011506,2]
[325152081,1714541453957,-518.76412374,0.00011506,2]
[325152082,1714541453967,-500.0,0.00011506,2]
[325152083,1714541453976,-500.0,0.00011506,2]
[325152084,1714541453985,-500.0,0.00011506,2]
[325152085,1714541453994,-500.0,0.00011506,2]
[325152086,1714541454003,-361.86827681,0.00011506,2]
[325152087,1714541454013,-500.0,0.00011506,2]
[325152088,1714541454022,-500.0,0.00011506,2]
[325152089,1714541454032,-500.0,0.00011506,2]
[325152090,1714541454041,-500.0,0.00011506,2]
[325152091,1714541454051,-500.0,0.00011506,2]
[325152092,1714541454060,-500.0,0.00011506,2]
[325152093,1714541454070,-500.0,0.00011506,2]
[325152094,1714541454079,-500.0,0.00011506,2]
[325152095,1714541454089,-500.0,0.00011506,2]
[325152096,1714541454099,-500.0,0.00011506,2]
[325152097,1714541454108,-455.60289336,0.00011506,2]
[325152098,1714541454118,-500.0,0.00011506,2]
[325152099,1714541454127,-500.0,0.00011506,2]
[325152100,1714541454136,-500.0,0.00011506,2]
[325152101,1714541454146,-454.44781983,0.00011506,2]
[325152102,1714541454156,-500.0,0.00011506,2]
[325152103,1714541454165,-500.0,0.00011506,2]
[325152104,1714541454175,-500.0,0.00011506,2]
[325152105,1714541454184,-500.0,0.00011506,2]
[325152106,1714541454194,-500.0,0.00011506,2]
[325152107,1714541454203,-511.68630656,0.00011506,2]
[325152108,1714541454213,-500.0,0.00011506,2]
[325152109,1714541454222,-500.0,0.00011506,2]
[325152110,1714541454231,-500.0,0.00011506,2]
[325152111,1714541454241,-500.0,0.00011506,2]
[325152112,1714541454250,-500.0,0.00011506,2]
[325152113,1714541454260,-537.69475485,0.00011506,2]
[325152114,1714541454270,-500.0,0.00011506,2]
[325152115,1714541454281,-500.0,0.00011506,2]
[325152116,1714541454291,-500.0,0.00011506,2]
[325152117,1714541454301,-500.0,0.00011506,2]
[325152118,1714541454311,-500.0,0.00011506,2]
[325152119,1714541454320,-500.0,0.00011506,2]
[325152120,1714541454330,-500.0,0.00011506,2]
[325152121,1714541454340,-790.46,0.00011506,2]
[325152122,1714541454350,-500.0,0.00011506,2]
[325152123,1714541454359,-500.0,0.00011506,2]
[325152124,1714541454368,-500.0,0.00011506,2]
[325152125,1714541454377,-500.0,0.00011506,2]
[325152126,1714541454386,-500.0,0.00011506,2]
[325152127,1714541454396,-500.0,0.00011506,2]
[325152128,1714541454406,-500.0,0.00011506,2]
[325152129,1714541454415,-500.0,0.00011506,2]
[325152130,1714541454426,-500.0,0.00011506,2]
[325152131,1714541454436,-500.0,0.00011506,2]
[325152132,1714541454445,-500.0,0.00011506,2]
[325152133,1714541454454,-500.0,0.00011506,2]
[325152134,1714541454463,-500.0,0.00011506,2]
[325152135,1714541454472,-500.0,0.00011506,2]
[325152136,1714541454482,-500.0,0.00011506,2]
[325152137,1714541454492,-500.0,0.00011506,2]
[325152138,1714541454501,-500.0,0.00011506,2]
[325152139,1714541454511,-500.0,0.00011506,2]
[325152140,1714541454520,-500.0,0.00011506,2]
[325152141,1714541454530,-500.0,0.00011506,2]
[325152142,1714541454539,-484.19614376,0.00011506,2]
[325152143,1714541454548,-500.0,0.00011506,2]
[325152144,1714541454558,-500.0,0.00011506,2]
[325152145,1714541454567,-500.0,0.00011506,2]
[325152146,1714541454577,-500.0,0.00011506,2]
[325152147,1714541454587,-500.0,0.00011506,2]
[325152148,1714541454596,-500.0,0.00011506,2]
[325152149,1714541454607,-500.0,0.00011506,2]
[325152150,1714541454616,-500.0,0.00011506,2]
[325152151,1714541454627,-500.0,0.00011506,2]
[325152152,1714541454693,-500.0,0.00011506,2]
[325152153,1714541454703,-534.34,0.00011506,2]
[325152154,1714541454712,-454.01606244,0.00011506,2]
[325152155,1714541454721,-500.0,0.00011506,2]
[325152156,1714541454731,-365.25065093,0.00011506,2]
[325152157,1714541454743,-500.0,0.00011506,2]
[325152158,1714541454752,-500.0,0.00011506,2]
[325152159,1714541454761,-1358.56,0.00011506,2]
[325152160,1714541454770,-500.0,0.00011506,2]
[325152161,1714541454779,-247.63213052,0.00011506,2]
[325152162,1714541454788,-500.0,0.00011506,2]
[325152163,1714541454798,-500.0,0.00011506,2]
[325152164,1714541454806,-500.0,0.00011506,2]
[325152165,1714541454817,-500.0,0.00011506,2]
[325152166,1714541454826,-500.0,0.00011506,2]
[325152167,1714541454836,-500.0,0.00011506,2]
[325152168,1714541454846,-157.70483649,0.00011506,2]
[325152169,1714541454858,-500.0,0.00011506,2]
[325152170,1714541454871,-500.0,0.00011506,2]
[325152171,1714541454880,-500.0,0.00011506,2]
[325152172,1714541454889,-500.0,0.00011506,2]
[325152173,1714541454899,-500.0,0.00011506,2]
[325152174,1714541454909,-500.0,0.00011506,2]
[325152175,1714541454918,-500.0,0.00011506,2]
[325152176,1714541454927,-500.0,0.00011506,2]
[325152177,1714541454938,-500.0,0.00011506,2]
[325152178,1714541454946,-500.0,0.00011506,2]
[325152179,1714541454956,-500.0,0.00011506,2]
[325152180,1714541454965,-500.0,0.00011506,2]
[325152181,1714541454975,-500.0,0.00011506,2]
[325152182,1714541454985,-500.0,0.00011506,2]
[325152183,1714541454994,-500.0,0.00011506,2]
[325152184,1714541455004,-689.77,0.00011506,2]
[325152185,1714541455015,-500.0,0.00011506,2]
[325152186,1714541455028,-500.0,0.00011506,2]
[325152187,1714541455039,-500.0,0.00011506,2]
[325152188,1714541455048,-500.0,0.00011506,2]
[325152189,1714541455058,-500.0,0.00011506,2]
[325152190,1714541455068,-500.0,0.00011506,2]
[325152191,1714541455078,-568.8127476,0.00011506,2]
[325152192,1714541455087,-500.0,0.00011506,2]
[325152193,1714541455097,-1934.76,0.00011506,2]
[325152194,1714541455107,-549.69415921,0.00011506,2]
[325152195,1714541455116,-500.0,0.00011506,2]
[325152196,1714541455126,-629.29,0.00011506,2]
[325152197,1714541455135,-500.0,0.00011506,2]
[325152198,1714541455144,-621.01,0.00011506,2]
[325152199,1714541455153,-500.0,0.00011506,2]
[325152200,1714541455162,-503.00927455,0.00011506,2]
[325152201,1714541455171,-500.0,0.00011506,2]
[325152202,1714541455182,-767.73,0.00011506,2]
[325152203,1714541455191,-500.0,0.00011506,2]
[325152204,1714541455201,-500.0,0.00011506,2]
[325152205,1714541455210,-500.0,0.00011506,2]
[325152206,1714541455219,-500.0,0.00011506,2]
[325152207,1714541455228,-500.0,0.00011506,2]
[325152208,1714541455238,-500.0,0.00011506,2]
[325152209,1714541455248,-512.62841477,0.00011506,2]
[325152210,1714541455259,-500.0,0.00011506,2]
[325152211,1714541455270,-500.0,0.00011506,2]
[325152212,1714541455279,-500.0,0.00011506,2]
[325152213,1714541455288,-250.84156579,0.00011506,2]
[325152214,1714541455298,-500.0,0.00011506,2]
[325152215,1714541455308,-500.0,0.00011506,2]
[325152216,1714541455317,-500.0,0.00011506,2]
[325152217,1714541455327,-500.0,0.00011506,2]
[325152218,1714541455338,-500.0,0.00011506,2]
[325152219,1714541455347,-500.0,0.00011506,2]
[325152220,1714541455357,-500.0,0.00011506,2]
[325152221,1714541455367,-500.0,0.00011506,2]
[325152222,1714541455376,-500.0,0.00011506,2]
[325152223,1714541455386,-500.0,0.00011506,2]
[325152224,1714541455395,-500.0,0.00011506,2]
[325152225,1714541455405,-500.0,0.00011506,2]
[325152226,1714541455414,-500.0,0.00011506,2]
[325152227,1714541455424,-406.81211957,0.00011506,2]
[325152228,1714541455433,-500.0,0.00011506,2]
[325152229,1714541455442,-500.0,0.00011506,2]
[325152230,1714541455451,-644.9794916,0.00011506,2]
[325152231,1714541455460,-500.0,0.00011506,2]
[325152232,1714541455469,-500.0,0.00011506,2]
[325152233,1714541455478,-500.0,0.00011506,2]
[325152234,1714541455488,-545.16664578,0.00011506,2]
[325152235,1714541455497,-500.0,0.00011506,2]
[325152236,1714541455506,-500.0,0.00011506,2]
[325152237,1714541455516,-500.0,0.00011506,2]
[325152238,1714541455524,-500.0,0.00011506,2]
[325152239,1714541455533,-500.0,0.00011506,2]
[325152240,1714541455544,-506.27140118,0.00011506,2]
[325152241,1714541455553,-500.0,0.00011506,2]
[325152242,1714541455563,-500.0,0.00011506,2]
[325152243,1714541455572,-500.0,0.00011506,2]
[325152244,1714541455582,-500.0,0.00011506,2]
[325152245,1714541455591,-150.0,0.00011506,2]
[325152246,1714541455601,-500.0,0.00011506,2]
[325152247,1714541455610,-500.0,0.00011506,2]
[325152248,1714541455620,-500.0,0.00011506,2]
[325152249,1714541455629,-500.0,0.00011506,2]
[325152250,1714541455638,-508.16593444,0.00011506,2]
[325152251,1714541455647,-500.0,0.00011506,2]
[325152252,1714541455656,-500.0,0.00011506,2]
[325152253,1714541455665,-756.0,0.00011506,2]
[325152254,1714541455674,-500.0,0.00011506,2]
[325152255,1714541455684,-500.0,0.00011506,2]
[325152256,1714541455693,-520.11642375,0.00011506,2]
[325152257,1714541455703,-527.34,0.00011506,2]
[325152258,1714541455712,-500.0,0.00011506,2]
[325152259,1714541455721,-500.0,0.00011506,2]
[325152260,1714541455730,-500.0,0.00011506,2]
[325152261,1714541455739,-500.0,0.00011506,2]
[325152262,1714541455748,-500.0,0.00011506,2]
[325152263,1714541455757,-500.0,0.00011506,2]
[325152264,1714541455766,-500.0,0.00011506,2]
[325152265,1714541455775,-500.0,0.00011506,2]
[325152266,1714541455784,-500.0,0.00011506,2]
[325152267,1714541455794,-500.0,0.00011506,2]
[325152268,1714541455803,-500.0,0.00011506,2]
[325152269,1714541455812,-500.0,0.00011506,2]
[325152270,1714541455822,-500.0,0.00011506,2]
[325152271,1714541455831,-500.0,0.00011506,2]
[325152272,1714541455840,-518.37289005,0.00011506,2]
[325152273,1714541455850,-598.71768148,0.00011506,2]
[325152274,1714541455862,-500.0,0.00011506,2]
[325152275,1714541455872,-500.0,0.00011506,2]
[325152276,1714541455881,-500.0,0.00011506,2]
[325152277,1714541455890,-500.0,0.00011506,2]
[325152278,1714541455900,-500.0,0.00011506,2]
[325152279,1714541455910,-500.0,0.00011506,2]
[325152280,1714541455920,-500.0,0.00011506,2]
[325152281,1714541455929,-500.0,0.00011506,2]
[325152282,1714541455939,-500.0,0.00011506,2]
[325152283,1714541455951,-500.0,0.00011506,2]
[325152284,1714541455964,-333.79737594,0.00011506,2]
[325152285,1714541455974,-500.0,0.00011506,2]
[325152286,1714541455985,-500.0,0.00011506,2]
[325152287,1714541455995,-500.0,0.00011506,2]
[325152288,1714541456005,-500.0,0.00011506,2]
[325152289,1714541456015,-511.07775336,0.00011506,2]
[325152290,1714541456026,-500.0,0.00011506,2]
[325152291,1714541456036,-500.0,0.00011506,2]
[325152292,1714541456046,-500.0,0.00011506,2]
[325152293,1714541456055,-500.0,0.00011506,2]
[325152294,1714541456066,-500.0,0.00011506,2]
[325152295,1714541456077,-500.0,0.00011506,2]
[325152296,1714541456087,-500.0,0.00011506,2]
[325152297,1714541456097,-500.0,0.00011506,2]
[325152298,1714541456108,-510.17932823,0.00011506,2]
[325152299,1714541456119,-500.0,0.00011506,2]
[325152300,1714541456129,-500.0,0.00011506,2]
[325152301,1714541456138,-500.0,0.00011506,2]
[325152302,1714541456149,-500.0,0.00011506,2]
[325152303,1714541456158,-500.0,0.00011506,2]
[325152304,1714541456170,-500.0,0.00011506,2]
[325152305,1714541456180,-500.0,0.00011506,2]
[325152306,1714541456190,-500.0,0.00011506,2]
[325152307,1714541456200,-500.0,0.00011506,2]
[325152308,1714541456210,-500.0,0.00011506,2]
[325152309,1714541456219,-311.48216246,0.00011506,2]
[325152310,1714541456230,-500.0,0.00011506,2]
[325152311,1714541456241,-500.0,0.00011506,2]
[325152312,1714541456251,-500.0,0.00011506,2]
[325152313,1714541456260,-500.0,0.00011506,2]
[325152314,1714541456272,-198.56501933,0.00011506,2]
[325152315,1714541456282,-500.0,0.00011506,2]
[325152316,1714541456291,-544.20566585,0.00011506,2]
[325152317,1714541456300,-258.90543187,0.00011506,2]
[325152318,1714541456311,-500.0,0.00011506,2]
[325152319,1714541456320,-500.0,0.00011506,2]
[325152320,1714541456330,-500.0,0.00011506,2]
[325152321,1714541456339,-2030.36,0.00011506,2]
[325152322,1714541456348,-500.0,0.00011506,2]
[325152323,1714541456357,-500.0,0.00011506,2]
[325152324,1714541456366,-514.58729216,0.00011506,2]
[325152325,1714541456376,-500.0,0.00011506,2]
[325152326,1714541456385,-500.0,0.00011506,2]
[325152327,1714541456395,-250.9840111,0.00011506,2]
[325152328,1714541456404,-500.0,0.00011506,2]
[325152329,1714541456414,-500.0,0.00011506,2]
[325152330,1714541456423,-500.0,0.00011506,2]
[325152331,1714541456433,-500.0,0.00011506,2]
[325152332,1714541456442,-500.0,0.00011506,2]
[325152333,1714541456452,-555.06478921,0.00011506,2]
[325152334,1714541456461,-500.0,0.00011506,2]
[325152335,1714541456471,-504.72142711,0.00011506,2]
[325152336,1714541456480,-637.76678084,0.00011506,2]
[325152337,1714541456490,-652.21,0.00011506,2]
[325152338,1714541456499,-500.0,0.00011506,2]
[325152339,1714541456509,-500.0,0.00011506,2]
[325152340,1714541456519,-500.0,0.00011506,2]
[325152341,1714541456529,-500.0,0.00011506,2]
[325152342,1714541456539,-500.0,0.00011506,2]
[325152343,1714541456548,-500.0,0.00011506,2]
[325152344,1714541456559,-500.0,0.00011506,2]
[325152345,1714541456570,-1130.19,0.00011506,2]
[325152346,1714541456579,-525.51,0.00011506,2]
[325152347,1714541456589,-612.38,0.00011506,2]
[325152348,1714541456598,-706.64,0.00011506,2]
[325152349,1714541456607,-500.0,0.00011506,2]
[325152350,1714541456618,-500.0,0.00011506,2]
[325152351,1714541456627,-500.0,0.00011506,2]
[325152352,1714541456636,-500.0,0.00011506,2]
[325152353,1714541456646,-632.69,0.00011506,2]
[325152354,1714541456655,-500.0,0.00011506,2]
[325152355,1714541456665,-783.17,0.00011506,2]
[325152356,1714541456675,-706.76,0.00011506,2]
[325152357,1714541456686,-500.0,0.00011506,2]
[325152358,1714541456695,-649.88,0.00011506,2]
[325152359,1714541456704,-500.0,0.00011506,2]
[325152360,1714541456714,-500.0,0.00011506,2]
[325152361,1714541456723,-500.0,0.00011506,2]
[325152362,1714541456733,-500.0,0.00011506,2]
[325152363,1714541456742,-500.0,0.00011506,2]
[325152364,1714541456751,-500.0,0.00011506,2]
[325152365,1714541456762,-1036.3,0.00011506,2]
[325152366,1714541456771,-768.99,0.00011506,2]
[325152367,1714541456783,-651.16,0.00011506,2]
[325152368,1714541456793,-8047.67,0.00011506,2]
[325152369,1714541456802,-500.0,0.00011506,2]
[325152370,1714541456812,-3254.04,0.00011506,2]
[325152371,1714541456821,-628.26,0.00011506,2]
[325152372,1714541456830,-390.10809505,0.00011506,2]
[325152373,1714541456839,-500.0,0.00011506,2]
[325152374,1714541456849,-500.0,0.00011506,2]
[325152375,1714541456860,-500.0,0.00011506,2]
[325152376,1714541456871,-1674.55,0.00011506,2]
[325152377,1714541456881,-500.0,0.00011506,2]
[325152378,1714541456891,-1402.58,0.00011506,2]
[325152379,1714541456903,-500.0,0.00011506,2]
[325152380,1714541456914,-500.0,0.00011506,2]
[325152381,1714541456924,-500.0,0.00011506,2]
[325152382,1714541456933,-597.31,0.00011506,2]
[325152383,1714541456943,-500.0,0.00011506,2]
[325152384,1714541456953,-500.0,0.00011506,2]
[325152385,1714541456963,-500.0,0.00011506,2]
[325152386,1714541456973,-500.0,0.00011506,2]
[325152387,1714541456983,-500.0,0.00011506,2]
[325152388,1714541456992,-500.0,0.00011506,2]
[325152389,1714541457002,-1063.07,0.00011506,2]
[325152390,1714541457011,-521.72,0.00011506,2]
[325152391,1714541457021,-500.0,0.00011506,2]
[325152392,1714541457031,-500.0,0.00011506,2]
[325152393,1714541457042,-3368.03,0.00011506,2]
[325152394,1714541457051,-500.0,0.00011506,2]
[325152395,1714541457062,-500.0,0.00011506,2]
[325152396,1714541457072,-500.0,0.00011506,2]
[325152397,1714541457084,-500.0,0.00011506,2]
[325152398,1714541457094,-520.23921093,0.00011506,2]
[325152399,1714541457104,-2141.36,0.00011506,2]
[325152400,1714541457114,-500.0,0.00011506,2]
[325152401,1714541457123,-216.19,0.00011506,2]
[325152402,1714541457133,-500.0,0.00011506,2]
[325152403,1714541457142,-500.0,0.00011506,2]
[325152404,1714541457152,-702.05,0.00011506,2]
[325152405,1714541457161,-695.56,0.00011506,2]
[325152406,1714541457171,-596.83515145,0.00011506,2]
[325152407,1714541457181,-1268.95,0.00011506,2]
[325152408,1714541457191,-681.72,0.00011506,2]
[325152409,1714541457200,-500.0,0.00011506,2]
[325152410,1714541457209,-500.0,0.00011506,2]
[325152411,1714541457219,-500.0,0.00011506,2]
[325152412,1714541457229,-500.0,0.00011506,2]
[325152413,1714541457238,-500.0,0.00011506,2]
[325152414,1714541457247,-500.0,0.00011506,2]
[325152415,1714541457256,-500.0,0.00011506,2]
[325152416,1714541457266,-500.0,0.00011506,2]
[325152417,1714541457276,-5071.49,0.00011506,2]
[325152418,1714541457286,-500.0,0.00011506,2]
[325152419,1714541457295,-1862.43,0.00011506,2]
[325152420,1714541457306,-637.4417977,0.00011506,2]
[325152421,1714541457315,-500.0,0.00011506,2]
[325152422,1714541457324,-500.0,0.00011506,2]
[325152423,1714541457334,-776.0,0.00011506,2]
[325152424,1714541457344,-500.24,0.00011506,2]
[325152425,1714541457354,-1991.87,0.00011506,2]
[325152426,1714541457363,-892.92,0.00011506,2]
[325152427,1714541457372,-500.0,0.00011506,2]
[325152428,1714541457382,-496.9194739,0.00011506,2]
[325152429,1714541457392,-500.0,0.00011506,2]
[325152430,1714541457401,-500.0,0.00011506,2]
[325152431,1714541457411,-500.0,0.00011506,2]
[325152432,1714541457420,-500.0,0.00011506,2]
[325152433,1714541457430,-1239.35,0.00011506,2]
[325152434,1714541457440,-500.0,0.00011506,2]
[325152435,1714541457449,-422.45471424,0.00011506,2]
[325152436,1714541457459,-500.0,0.00011506,2]
[325152437,1714541457468,-500.0,0.00011506,2]
[325152438,1714541457478,-1068.02,0.00011506,2]
[325152439,1714541457488,-500.0,0.00011506,2]
[325152440,1714541457498,-500.0,0.00011506,2]
[325152441,1714541457507,-2790.87,0.00011506,2]
[325152442,1714541457517,-1222.77,0.00011506,2]
[325152443,1714541457527,-500.0,0.00011506,2]
[325152444,1714541457537,-500.0,0.00011506,2]
[325152445,1714541457546,-500.0,0.00011506,2]
[325152446,1714541457556,-242.01040478,0.00011506,2]
[325152447,1714541457566,-780.54,0.00011506,2]
[325152448,1714541457575,-3627.0,0.00011506,2]
[325152449,1714541457585,-1119.68,0.00011506,2]
[325152450,1714541457595,-500.0,0.00011506,2]
[325152451,1714541457606,-500.0,0.00011506,2]
[325152452,1714541457616,-500.0,0.00011506,2]
[325152453,1714541457627,-500.0,0.00011506,2]
[325152454,1714541457637,-2693.04,0.00011506,2]
[325152455,1714541457646,-500.0,0.00011506,2]
[325152456,1714541457656,-500.0,0.00011506,2]
[325152457,1714541457665,-1062.57,0.00011506,2]
[325152458,1714541457676,-927.55,0.00011506,2]
[325152459,1714541457686,-500.0,0.00011506,2]
[325152460,1714541457695,-1354.83,0.00011506,2]
[325152461,1714541457705,-3622.61,0.00011506,2]
[325152462,1714541457715,-500.0,0.00011506,2]
[325152463,1714541457724,-565.85,0.00011506,2]
[325152464,1714541457734,-500.0,0.00011506,2]
[325152465,1714541457744,-1343.05,0.00011506,2]
[325152466,1714541457753,-500.0,0.00011506,2]
[325152467,1714541457763,-2006.19,0.00011506,2]
[325152468,1714541457772,-3504.4,0.00011506,2]
[325152469,1714541457782,-500.0,0.00011506,2]
[325152470,1714541457792,-3182.52,0.00011506,2]
[325152471,1714541457801,-500.0,0.00011506,2]
[325152472,1714541457811,-500.0,0.00011506,2]
[325152473,1714541457820,-500.0,0.00011506,2]
[325152474,1714541457830,-838.02,0.00011506,2]
[325152475,1714541457839,-6560.77,0.00011506,2]
[325152476,1714541457849,-500.0,0.00011506,2]
[325152477,1714541457861,-1469.47,0.00011506,2]
[325152478,1714541457872,-369.76909602,0.00011506,2]
[325152479,1714541457882,-1464.39,0.00011506,2]
[325152480,1714541457892,-500.0,0.00011506,2]
[325152481,1714541457902,-515.39,0.00011506,2]
[325152482,1714541457912,-500.0,0.00011506,2]
[325152483,1714541457921,-1044.55,0.00011506,2]
[325152484,1714541457931,-986.94,0.00011506,2]
[325152485,1714541457943,-500.0,0.00011506,2]
[325152486,1714541457953,-500.0,0.00011506,2]
[325152487,1714541457962,-500.0,0.00011506,2]
[325152488,1714541457971,-500.0,0.00011506,2]
[325152489,1714541457981,-1170.78,0.00011506,2]
[325152490,1714541457991,-891.98,0.00011506,2]
[325152491,1714541458000,-500.0,0.00011506,2]
[325152492,1714541458010,-500.0,0.00011506,2]
[325152493,1714541458019,-1726.91,0.00011506,2]
[325152494,1714541458029,-588.17801457,0.00011506,2]
[325152495,1714541458038,-500.0,0.00011506,2]
[325152496,1714541458047,-659.95,0.00011506,2]
[325152497,1714541458057,-500.0,0.00011506,2]
[325152498,1714541458067,-500.0,0.00011506,2]
[325152499,1714541458076,-500.0,0.00011506,2]
[325152500,1714541458087,-506.95,0.00011506,2]
[325152501,1714541458096,-12049.47,0.00011506,2]
[325152502,1714541458106,-4863.3,0.00011506,2]
[325152503,1714541458115,-12150.54,0.00011506,2]
[325152504,1714541458125,-500.0,0.00011506,2]
[325152505,1714541458136,-766.42,0.00011506,2]
[325152506,1714541458147,-500.0,0.00011506,2]
[325152507,1714541458157,-500.0,0.00011506,2]
[325152508,1714541458167,-500.0,0.00011506,2]
[325152509,1714541458177,-1181.93,0.00011506,2]
[325152510,1714541458187,-532.44,0.00011506,2]
[325152511,1714541458198,-500.0,0.00011506,2]
[325152512,1714541458208,-1229.45,0.00011506,2]
[325152513,1714541458218,-1476.6526,0.0001155,2]
[325152514,1714541458229,-1476.6526,0.0001162,2]
[325152515,1714541458239,-1476.65261,0.000117,2]
[325152516,1714541458251,-1000.0,0.00011731,2]
[325152517,1714541458261,-500.0,0.00011731,2]
[325152518,1714541458272,-308.04572919,0.00011778,2]
[325152519,1714541458283,-327.24491788,0.00011778,2]
[325152520,1714541458293,-2905.68765111,0.00011778,2]
[325152521,1714541458305,-155.31169365,0.00011778,2]